{"text_format":"1","workbook":"xlsx","n_sheets":2,"sheets":["Требования","Хронология"],"not_rendered":{"charts":0,"images":22,"macros":1,"external_links":0,"defined_names":2,"comments":0,"pivot_tables":0},"unopened":[],"bounds":{"document_bytes":16777216,"sheet_cells":100000,"rows_first":2000,"rows_last":500,"rows_between":2000,"halvings":0,"cell_chars":16384,"cell_head_chars":4096},"cells_cut":0,"cells_raw":0,"read":"whole","date_system":"1900"}

{"sheet":"Требования","index":0,"n_rows":40,"n_cols":11,"rows_kept":40,"cut":false,"hidden":false,"merged":[[35,2,37,2],[35,3,37,3],[29,7,29,8],[12,2,22,2],[23,2,25,2],[26,2,28,2],[29,2,31,2],[32,2,34,2],[32,7,32,8],[35,7,35,8],[26,7,26,8],[23,7,23,8],[7,3,7,4],[10,7,10,8],[11,7,11,8],[12,7,12,8],[10,1,10,6]]}
[]
[null,null,null,null,null,"Расчет индекса готовности к отопительному периоду потребителей тепловой энергии",null,null,null,"Дата оценочного листа",{"$f":"TODAY()","v":"2025-04-22"}]
[]
[null,"По результатам проведенной оценки обеспечения готовности Объекта, расположенного по адресу "]
[null,null,null,null,null,null,null,"(адрес теплопотребляющей установки)"]
[]
[null,null,"принадлежащего следующему Потребителю:",null,null,{"$f":"\", получает индекс готовности  = \"& H11&\", соотвествующий уровню готовности - \"& IF(H11>0.9,\"Готов\",IF(H11<0.8,\"Не готов\",\"Готов при условии\"))","v":", получает индекс готовности  = 0, соотвествующий уровню готовности - Не готов"}]
[null,null,null,"(наименование Потребителя)"]
[]
[null,"№ п/п","Обязательное требование","Подтверждающий документ","Показатель","Вес показателя","Наименование показателя","Расчет показателей готовности (рабочие формулы и ячейки для заполнения)","Выполнение","Дата устранения замечания (при наличии отметки \"Не выполнено\")","Примечания к расчетам показателей готовности "]
[null,"ИНДЕКС ГОТОВНОСТИ",null,null,null,null,null,{"$f":"F12*H12+F33*H33+F36*H36+F40*H40+F39*H39","v":0},null,null,"Расчет осуществляется автоматически по формуле:\nИпотр=Кзакон о тепл*0,85+ Кжил.фонд*0,06 +Кгаз*0,02+Кпредп*0,05+Кплан*0,02"]
[null,1,"Выполнить требования, установленные частью 6 статьи 20 Федерального закона от 27 июля 2010 г. № 190-ФЗ «О теплоснабжении» (далее – Федеральный закон о теплоснабжении)\n(подпункт 11.1 пункта 11 Правил обеспечения готовности к отопительному периоду, утвержденных приказом Минэнерго России от 13 ноября 2024 г. № 2234 (далее – Правила):"," – ","Показатель выполнения требований Федерального \nзакона о теплоснабжении",0.85,"Кзакон о тепл",{"$f":"F13*H13+F24*H24+F27*H27+F30*H30","v":0},null,null,"Расчет осуществляется автоматически по формуле:\nКзакон о тепл=Кбезопасн*0,8+Крежим*0,03+\nКзадолж*0,15+Кучет*0,02"]
[null,"1.1","Обеспечивать эксплуатацию теплопотребляющих установок в соответствии с требованиями безопасности в сфере теплоснабжения, установленными статьей 23.2  Федерального закона о теплоснабжении (пункт 1 части 6 статьи 20 Федерального закона о теплоснабжении)","Документы, предусмотренные подпунктами 11.5.1 – 11.5.10 пункта 11 Правил ","Показатель обеспечения эксплуатации теплопотребляющих установок в соответствии с требованиями безопасности",0.8,"Кбезопасн",{"$f":"F14*H14+F15*H15+F16*H16+F17*H17+F18*H18+F19*H19+F20*H20+F21*H21+F22*H22+F23*H23","v":0},null,null,"Расчет осуществляется автоматически по формуле:\nКбезопасн=Кпромыв*0,31+Кгидр*0,31+Карм*0,01+\nКотв*0,01+Киспыт*0,31+Кперечень*0,01+\nКэкспл/произв.инстр*0,01+Кпаспорт.тепл.пункт*0,01+Кшт*0,01+\nКрегул.темпер*0,01"]
[null,"1.1.1",null,"Акты промывки теплопотребляющей установки, проведенной в присутствии представителя единой теплоснабжающей организации, в зону (зоны) деятельности которой входит система (системы) теплоснабжения, установленные требованиями пункта 9.2.9 Правил технической эксплуатации тепловых энергоустановок, утвержденных приказом Минэнерго России от 24 марта 2003 г. № 115  (далее – Правила технической эксплуатации тепловых энергоустановок)\n(подпункт 11.5.1 пункта 11 Правил)\n","Показатель наличия акта промывки теплопотребляющей установки ",0.31,"Кпромыв",0,null,{"$f":"IF(H14<1,$K$2+30,\"\")","v":"2025-05-22"},"Необходимо выбрать одно значение, в зависимости от следующих условий:\nналичие – 1;\nотсутствие – 0\n\nЗначение индекса готовности Ипотр не может быть более 0,8 в случае, если данный показатель равен 0. \n"]
[null,"1.1.2",null,"Акты о проведении наладки режимов потребления тепловой энергии и (или) теплоносителя (в том числе тепловых и гидравлических режимов) теплового пункта, внутридомовых сетей и теплопотребляющих установок, актов об установке и пломбировании дроссельных (ограничительных) устройств во внутренних системах, включая элеваторы и шайбы на линиях рециркуляции горячего водоснабжения в соответствии с пунктом 9.3.25 Правил технической эксплуатации тепловых энергоустановок \n(подпункт 11.5.2 пункта 11 Правил)\n\n","Показатель наличия актов о проведении наладки режимов потребления тепловой энергии и (или) теплоносителя ",0.31,"Кгидр",0,null,{"$f":"IF(H15<1,$K$2+30,\"\")","v":"2025-05-22"},"Необходимо выбрать одно значение, в зависимости от следующих условий:\nналичие – 1;\nотсутствие – 0\n\nЗначение индекса готовности Ипотр не может быть более 0,8 в случае, если данный показатель равен 0. \n\n"]
[null,"1.1.3",null,"Акт проверки (осмотра) запорной арматуры, в том числе в высших (воздушники) и низших точках трубопровода (спускники) и арматуры постоянного регулирования на предмет наличия и \nработоспособности, плотности (герметичности) сальниковых уплотнений, наличия теплоизоляции в соответствии с проектными решениями, наличия соответствующих неповрежденных пломб, установленных теплоснабжающими и теплосетевыми организациями \n(подпункт 11.5.3 пункта 11 Правил)\n","Показатель наличия акта проверки (осмотра) запорной арматуры и арматуры постоянного регулирования",0.01,"Карм",0,null,"2025-05-22","Необходимо выбрать одно значение, в зависимости от следующих условий:\nналичие – 1;\nотсутствие – 0"]
[null,"1.1.4",null,"Установленные пунктами 2.1.2, 2.1.3 Правил технической эксплуатации тепловых энергоустановок организационно-распорядительные документы организации о назначении ответственных лиц за безопасную эксплуатацию тепловых энергоустановок для объектов и (или) установленные пунктом 228 Правил промышленной безопасности при использовании оборудования, работающего под избыточным давлением, утвержденных приказом Ростехнадзора от 15 декабря 2020 г. № 536  (далее – Правила промышленной безопасности), ответственных лиц за безопасную эксплуатацию оборудования под давлением и ответственных за осуществление производственного контроля при эксплуатации оборудования на опасных производственных объектах (далее – ОПО)\n(подпункт 11.5.4 пункта 11 Правил)","Показатель назначения ответственных лиц за безопасную эксплуатацию тепловых энергоустановок",0.01,"Котв",0,null,"2025-05-22","Необходимо выбрать одно значение, в зависимости от следующих условий:\nналичие – 1;\nотсутствие – 0\n"]
[null,"1.1.5",null,"Акты о проведении испытаний на плотность и прочность (гидравлических испытаний) тепловых энергоустановок, включая трубопроводы тепловых сетей (при наличии) и участков тепловых вводов (до вводной запорной арматуры) в границах балансовой принадлежности, оборудования индивидуальных тепловых пунктов и внутренних систем теплопотребления в соответствии\nс требованиями пунктов 9.8, 9.1.59 Правил технической эксплуатации тепловых энергоустановок и наличие записей о результатах проведенных испытаний в паспорте теплового пункта  и (или) теплопотребляющих установок \n(подпункт 11.5.5 пункта 11 Правил)\n\n","Показатель наличия актов о проведении испытаний на плотность и прочность (гидравлических испытаний) тепловых энергоустановок, включая трубопроводы тепловых сетей (при наличии) и участков тепловых вводов",0.31,"Киспыт",0,null,"2025-05-22","Необходимо выбрать одно значение, в зависимости от следующих условий:\nналичие – 1;\nотсутствие – 0\n\nЗначение индекса готовности Ипотр не может быть более 0,8 в случае, если данный показатель равен 0. "]
[null,"1.1.6",null,"Организационно-распорядительные документы об утверждении перечня производственных инструкций для безопасной эксплуатации котлов и вспомогательного оборудования в случае эксплуатации ОПО, разработанного\nв соответствии с пунктом 278 Правил промышленной безопасности, и (или) перечня документации эксплуатирующей организации для объектов, не являющихся ОПО, разработанного в соответствии с пунктом 2.8.2 Правил технической эксплуатации тепловых энергоустановок\n(подпункт 11.5.6 пункта 11 Правил)","Показатель наличия перечня производственных инструкций для безопасной эксплуатации котлов и вспомогательного оборудования в случае эксплуатации ОПО\n\n",0.01,"Кперечень",0,null,"2025-05-22","Необходимо выбрать одно значение, в зависимости от следующих условий:\nналичие – 1;\nотсутствие – 0"]
[null,"1.1.7",null,"Утвержденные в соответствии с требованиями пункта 2.2 Правил технической эксплуатации тепловых энергоустановок эксплуатационные инструкции объектов теплоснабжения и (или) производственные инструкции, разработанные в соответствии с пунктом 278 Правил промышленной безопасности \n(подпункт 11.5.7 пункта 11 Правил)\n","Показатель наличия эксплуатационных инструкций объектов теплоснабжения и (или) производственных инструкций",0.01,"Кэкспл/произв.инстр",0,null,"2025-05-22","Необходимо выбрать одно значение, в зависимости от следующих условий:\nналичие – 1;\nотсутствие – 0"]
[null,"1.1.8",null,"Паспорта тепловых пунктов или копии паспортов тепловых пунктов в соответствии с пунктом 9.1.5 Правил технической эксплуатации тепловых энергоустановок, а также проектно-техническая документация на здание (сооружение) в части внутренних систем теплоснабжения по теплопотребляющим установкам, установленным в здании (сооружении) \n(подпункт 11.5.8 пункта 11 Правил)\n","Показатель наличия паспортов тепловых пунктов и проектно-технической документации на здание в части внутренних систем теплоснабжения по теплопотребляющим установкам",0.01,"Кпаспорт.тепл.пункт",0,null,"2025-05-22","Необходимо выбрать одно значение, в зависимости от следующих условий:\nналичие – 1;\nотсутствие – 0"]
[null,"1.1.9",null,"Выписка из утвержденного штатного расписания, подтверждающая наличие персонала, осуществляющего функции эксплуатационной, диспетчерской и аварийной служб или договоры на техническое обслуживание, энергосервисные контракты в случае привлечения специализированных организаций для эксплуатации оборудования\n(подпункт 11.5.9 пункта 11 Правил)\n\n","Показатель наличия персонала, осуществляющего функции эксплуатационной, диспетчерской и аварийной служб или договоров на техническое обслуживание, энергосервисных контрактов",0.01,"Кшт",0,null,"2025-05-22","Необходимо выбрать одно значение, в зависимости от следующих условий:\nналичие – 1;\nотсутствие – 0"]
[null,"1.1.10",null,"Акты или документы, подтверждающие проверку работоспособности автоматических регуляторов температуры воды, подаваемой в системы горячего водоснабжения, а также проверку настроечных характеристик и установок систем регулирования и (или) регуляторов температуры и давления теплоносителя на системы отопления и воды на системы горячего водоснабжения, ограничения расхода сетевой воды через тепловой пункт в соответствии с пунктами 9.3.22, 9.4.18 Правил технической эксплуатации тепловых энергоустановок\n(подпункт 11.5.10 пункта 11 Правил)\n","Показатель наличия актов или документов, подтверждающих работоспособность автоматических регуляторов температуры воды",0.01,"Крегул.темпер",0,null,"2025-05-22","Необходимо выбрать одно значение, в зависимости от следующих условий:\nналичие – 1;\nотсутствие – 0"]
[null,"1.2","Обеспечивать готовность к соблюдению указанного в договоре теплоснабжения режима потребления тепловой энергии \n(пункт 2 части 6 статьи 20 Федерального закона о теплоснабжении)","Документы, предусмотренные подпунктами 11.5.11, 11.5.19 пункта 11 Правил","Показатель обеспечения соблюдения указанного в договоре теплоснабжения режима потребления тепловой энергии",0.03,"Крежим",{"$f":"F25*H25+F26*H26","v":0},null,null,"Расчет осуществляется автоматически по формуле:\nКрежим=0,5*Кврез+0,5*Ктех.готов"]
[null,"1.2.1",null,"Акты осмотра объектов теплоснабжения и теплопотребляющих установок на предмет наличия несанкционированных врезок для разбора сетевой воды или потребления тепловой энергии на теплопотребляющих энергоустановках, или для переключения закрытой системы теплоснабжения на открытую систему теплоснабжения с разбором сетевой воды или отступлений от проектного решения\n(подпункт 11.5.11 пункта 11 Правил)\n","Показатель наличия актов осмотра объектов теплоснабжения и теплопотребляющих установок на предмет наличия несанкционированных врезок ",0.5,"Кврез",0,null,"2025-05-22","Необходимо выбрать одно значение, в зависимости от следующих условий:\nналичие – 1;\nотсутствие – 0"]
[null,"1.2.2",null,"Подписанный представителем теплоснабжающей организации и уполномоченным представителем потребителя тепловой энергии акт проверки технической готовности теплопотребляющей установки объекта к отопительному периоду, составленный по результатам анализа документов и визуального осмотра, с указанием выявленных замечаний, свидетельствующих о несоблюдении потребителем требований безопасной эксплуатации теплопотребляющих установок\nи (или) невыполнении мероприятий, обеспечивающих соблюдение указанного в договоре теплоснабжения или предусмотренного нормативными актами режима потребления тепловой энергии (подпункт 11.5.19 пункта 11 Правил)\n\n","Показатель наличия актов проверки технической готовности теплопотребляющей установки объекта к отопительному периоду",0.5,"Ктех.готов",0,null,"2025-05-22","Необходимо выбрать одно значение, в зависимости от следующих условий:\nналичие – 1;\nотсутствие – 0"]
[null,"1.3","Обеспечивать отсутствие задолженности за поставленные тепловую энергию (мощность), теплоноситель \n(пункт 3 части 6 статьи 20 Федерального закона о теплоснабжении)","Документы, предусмотренные подпунктами 11.5.12, 11.5.13 пункта 11 Правил","Показатель отсутствия задолженности за поставленные тепловую энергию",0.15,"Кзадолж",{"$f":"F28*H28+F29*H29","v":0},null,null,"Расчет осуществляется автоматически по формуле:\nКзадолж=Кдоговор*0,05+Ксвер*0,95"]
[null,"1.3.1",null,"Копии заключенных договоров теплоснабжения и (или) договоров оказания услуг по поддержанию резервной тепловой мощности \n(подпункт 11.5.12 пункта 11 Правил)\n\n","Показатель наличия заключенных договоров теплоснабжения и (или) договоров оказания услуг по поддержанию резервной тепловой мощности",0.05,"Кдоговор",0,null,"2025-05-22","Необходимо выбрать одно значение, в зависимости от следующих условий:\nналичие – 1;\nотсутствие – 0"]
[null,"1.3.2",null,"Акт сверки расчетов за поставленные тепловую энергию (мощность), теплоноситель, горячую воду, оказание услуг по поддержанию резервной тепловой мощности по состоянию на дату проверки, подтверждающий отсутствие задолженности, либо подписанное сторонами соглашение, подтверждающее урегулирование с теплоснабжающей организацией порядка погашения всей существующей задолженности\n(подпункт 11.5.13 пункта 11 Правил)\n","Показатель отсутствия задолженности либо подписанное сторонами соглашение, подтверждающее урегулирование с теплоснабжающей организацией порядка погашения всей существующей задолженности",0.95,"Ксвер",0,null,"2025-05-22","Необходимо выбрать одно значение, в зависимости от следующих условий:\nналичие – 1;\nотсутствие – 0\n"]
[null,"1.4","Организовывать коммерческий учет тепловой энергии, теплоносителя в соответствии с требованиями, установленными статьей 19 Закона о теплоснабжении (пункт 4 части 6 статьи 20 Федерального закона о теплоснабжении)","Документы, предусмотренные подпунктами 11.5.14, 11.5.15 пункта 11 Правил","Показатель организации коммерческого учета тепловой энергии, теплоносителя",0.02,"Кучет",{"$f":"F31*H31+F32*H32","v":0},null,null,"Расчет осуществляется автоматически по формуле:\nКучет=Кпровер.уз.уч*0,5+Кпровер.кип*0,5"]
[null,"1.4.1",null,"Акты периодической проверки узла учета, составленные в соответствии с пунктом 73 Правил коммерческого учета, утвержденных постановлением Правительства Российской Федерации от 18 ноября 2013 № 1034, акты разграничения балансовой принадлежности\n(подпункт 11.5.14 пункта 11 Правил)\n","Показатель наличия акта проверки узла учета ",0.5,"Кпровер.уз.уч",0,null,"2025-05-22","Необходимо выбрать одно значение, в зависимости от следующих условий:\nналичие – 1;\nотсутствие – 0\n\n"]
[null,"1.4.2",null,"Акты проверки контрольно-измерительных приборов в тепловом пункте, с обязательным указанием заводских номеров, отметки о наличии паспортов контрольно-измерительных приборов\n(подпункт 11.5.15 пункта 11 Правил)\n\n","Показатель наличия актов проверки контрольно-измерительных приборов в тепловом пункте",0.5,"Кпровер.кип",0,null,"2025-05-22","Необходимо выбрать одно значение, в зависимости от следующих условий:\nналичие – 1;\nотсутствие – 0\n\n"]
[null,"2","В случае эксплуатации жилищного фонда обеспечить выполнение требований Правил и норм технической эксплуатации жилищного фонда, утвержденных постановлением Госстроя Российской Федерации от 27 сентября 2003 № 170  (далее – Правила и нормы технической эксплуатации жилищного фонда) \n(подпункт 11.2 пункта 11 Правил)","Документы, предусмотренные подпунктами 11.5.16, 11.5.17 пункта 11 Правил","Показатель выполнения Правил и норм технической эксплуатации жилищного фонда",0.06,"Кжил.фонд",{"$f":"F34*H34+F35*H35","v":0},null,null,"Расчет осуществляется автоматически по формуле:\nКжил.фонд=Кконтур*0,7+Кдезинф*0,3"]
[null,"2.1",null,"Акт выполненных работ по подготовке к отопительному периоду теплового контура здания в соответствии с требованиями пункта 2.6.10 Правил и норм технической эксплуатации жилищного фонда\n(подпункт 11.5.16 пункта 11 Правил)","Показатель выполнения работ по подготовке к отопительному периоду теплового контура здания",0.7,"Кконтур",0,null,"2025-05-22","Необходимо выбрать одно значение, в зависимости от следующих условий:\nналичие – 1;\nотсутствие – 0"]
[null,"2.2",null,"Акты о проведении дезинфекции систем теплопотребления с открытой схемой теплоснабжения и горячего водоснабжения в соответствии с пунктом 5.2.10 Правил и норм технической эксплуатации жилищного фонда, санитарных правил и норм СанПиН 1.2.3685-21 «Гигиенические нормативы и требования к обеспечению безопасности и (или) безвредности для человека факторов среды обитания», утвержденных постановлением Главного государственного санитарного врача Российской Федерации от 28.01.2021 № 2  (далее – СанПиН 1.2.3685-21), и акты о результатах отбора проб воды из системы на соответствие требованиям СанПиН 1.2.3685-21, оформленные аккредитованной лабораторией (подпункт 11.5.17 пункта 11 Правил)\n","Показатель наличия актов о проведении дезинфекции систем теплопотребления с открытой схемой теплоснабжения и горячего водоснабжения актов о результатах отбора проб воды из системы",0.3,"Кдезинф",0,null,"2025-05-22","Необходимо выбрать одно значение, в зависимости от следующих условий:\nналичие – 1;\nотсутствие – 0"]
[null,"3","Обеспечить выполнение требования, предусмотренного пунктом 11 Правил пользования газом и предоставления услуг по газоснабжению в Российской Федерации, утвержденных постановлением Правительства Российской Федерации от 17 мая 2002 г. № 317, в части обеспечения безопасности при использовании и содержании внутридомового и внутриквартирного газового оборудования при предоставлении коммунальной услуги по газоснабжению \n(подпункт 11.3 пункта 11 Правил)\n","Для лиц, указанных в подпунктах 1.4, 1.5 пункта 1 Правил, - копия акта обследования дымовых и вентиляционных каналов многоквартирных домов перед отопительным периодом, копия действующего договора о техническом обслуживании и ремонте внутридомового газового оборудования в многоквартирном доме\n(пункт 11.5.18 пункта 18 Правил)\n\n","Показатель обеспечения безопасности при использовании и содержании внутридомового и внутриквартирного газового оборудования при предоставлении коммунальной услуги по газоснабжению",0.02,"Кгаз",{"$f":"F37*H37+F38*H38","v":0},null,null,"Расчет осуществляется автоматически по формуле:\nКгаз=Кдым.вент*0,5+Кдогов.тех.обсл*0,5\n\nЕсли газовое оборудование в многоквартирном доме не используется, Кгаз принимается равным 1."]
[null,"3.1",null,null,"Показатель наличия акта обследования дымовых и вентиляционных каналов многоквартирных домов перед отопительным периодом",0.5,"Кдым.вент",0,null,"2025-05-22","Необходимо выбрать одно значение, в зависимости от следующих условий:\nналичие – 1;\nотсутствие – 0"]
[null,"3.2",null,null,"Показатель наличия действующего договора о техническом обслуживании и ремонте внутридомового газового оборудования в многоквартирном доме",0.5,"Кдогов.тех.обсл",0,null,"2025-05-22","Необходимо выбрать одно значение, в зависимости от следующих условий:\nналичие – 1;\nотсутствие – 0\n"]
[null,"4","Обеспечить выполнение в установленные сроки предписаний, влияющих на надежность работы в отопительный период, выданных федеральным органом исполнительной власти государственного энергетического надзора, федерального государственного надзора в области промышленной безопасности, федеральными органами исполнительной власти в сфере обороны, обеспечения безопасности, государственной охраны, внешней разведки, мобилизационной подготовки и мобилизации, исполнения наказаний (их подразделениями) (в случаях, предусмотренных пунктом 2 части 1 статьи 41 Федерального закона о теплоснабжении и абзацем вторым пункта 2 статьи 5 Федерального закона от 21 июля 1997 г. № 116-ФЗ «О промышленной безопасности опасных производственных объектов» (далее – Федеральный закон о промышленной безопасности), об устранении нарушений требований пунктов 2.2.1, 2.3.14, 2.3.15, 2.8.1, 6.2.52, 6.2.62, 9.1.53, 9.2.9, 9.2.10, 9.2.12, 9.2.13, 9.2.20, 9.3.10, 9.3.11, 9.3.19, 9.3.24, 9.3.25, 10.1.9, 11.1, 11.2, 11.5 Правил технической эксплуатации тепловых энергоустановок, пунктов 394, 396 – 399, 403 Правил промышленной безопасности (подпункт 11.4 пункта 11 Правил)\n","Справка, представленная федеральным органом исполнительной власти государственного энергетического надзора, федерального государственного надзора в области промышленной безопасности, федеральными органами исполнительной власти в сфере обороны, обеспечения безопасности, государственной охраны, внешней разведки, мобилизационной подготовки и мобилизации, исполнения наказаний (их подразделениями) (в случаях, предусмотренных пунктом 2 части 1 статьи 41 Федерального закона о теплоснабжении и абзацем вторым пункта 2 статьи 5 Федерального закона о промышленной безопасности), в комиссию по оценке готовности к отопительному периоду\n(подпункт 11.4 пункта 11 Правил)\n\n","Показатель выполнения предписаний, влияющих на надежность работы в отопительный период",0.05,"Кпредп",0,null,"2025-05-22","Необходимо выбрать одно значение, в зависимости от следующих условий:\nналичие – 1;\nотсутствие – 0"]
[null,"5","Обеспечить выполнение плана подготовки к отопительному периоду, предусмотренного пунктом 3 Правил, и составленного с учетом пункта 11.1 Правил технической эксплуатации тепловых энергоустановок\n(подпункт 11.5 пункта 11 Правил)\n\n","План подготовки к отопительному периоду \n(пункт 3 Правил)\n\n","показатель наличия утврежденного плана подготовки к отопительному периоду",0.02,"Кплан",0,null,"2025-05-22","Необходимо выбрать одно значение, в зависимости от следующих условий:\nналичие – 1;\nотсутствие – 0\n"]

{"sheet":"Хронология","index":1,"n_rows":16,"n_cols":30,"rows_kept":16,"cut":false,"hidden":true,"merged":[[15,21,15,22],[8,29,8,30],[8,10,8,11],[10,27,10,29],[13,29,13,30],[13,10,13,11],[8,26,8,27],[10,24,10,26],[15,3,15,4],[12,4,12,6],[11,4,11,6],[4,10,7,10],[8,13,8,14],[13,6,13,7],[13,0,18,0],[4,0,9,0],[10,0,12,0],[15,16,15,17],[8,18,8,19],[10,17,10,18],[11,14,11,29],[12,19,12,21],[8,23,8,24],[10,22,10,23],[11,1,11,3],[4,1,9,9],[13,26,13,27],[10,11,10,13],[15,6,15,7],[4,14,5,29]]}
[]
[]
[]
[]
["ЕТО","Создание комиссии по оценки готовности ",null,null,null,null,null,null,null,null,null,null,null,null,"Период оценки готовности"]
[]
[]
[]
[null,null,null,null,null,null,null,null,null,null,"Уведомление потребителя о дате начала оценки",null,null,"Начало периода оценки готовности",null,null,null,null,"Расчет и проверка оценочного листа, выдача замечаний при их наличии",null,null,null,null,"Выполнение повторной оценки готовности",null,null,"Оформление Акта оценки готовнсти",null,null,"Получение Паспорта готовности "]
[]
[null,null,null,null,null,null,null,null,null,null,null,"за 20 календарных дней",null,null,null,null,null,"10 календарных дней",null,null,null,null,"в течение 14 к. дней",null,"1 рабочий день",null,null,"5 рабочих дней"]
[null,null,null,null,null,null,null,null,null,null,null,null,null,null,"не больше 30 календарных  дней"]
[null,null,null,null,"не позднее 5 рабочих дней",null,null,null,null,null,null,null,null,null,null,null,null,null,null,"срок устанолвенный ЕТО для устранения замечаний"]
["Потребитель",null,null,null,null,null,"30 апреля",null,null,null,"15 августа",null,null,null,null,null,null,null,null,null,null,null,null,null,null,null,"10 сентября",null,null,"15 сентября"]
[]
[null,null,null,"Утверждение плана подготовки потребителя к ОЗП",null,null,"Подготовка и публикация/отправка утвержденного в адрес МО плана подготовки потребителя к ОЗП",null,null,null,null,null,null,null,null,null,"Предосталвение заполненного оценочного листа ",null,null,null,null,"Отправка уведомления в адрес ЕТО об устранении замечаний "]